[Event "Titled Tuesday Blitz May 30 Early 2023"]
[White "Herman, Daniel"]
[Black "Simonian, Hrair"]
[WhiteFideId "30935008"]
[BlackFideId "13302337"]
[WhiteElo "1897"]
[BlackElo "2447"]
[Result "0-1"]
[Round "03"]
[TimeControl "180+2"]
[Date "2023.05.30"]
[WhiteClock "0:00:05"]
[BlackClock "0:00:16"]

1. c4 {[%clk 0:03:00]}  e5 {[%clk 0:02:59]} 2. Nc3 {[%clk 0:02:59]}  Bb4 {[%clk 0:02:59]} 3. Qc2 {[%clk 0:02:54]}  Nc6 {[%clk 0:02:58]} 4. e3 {[%clk 0:02:51]}  Nf6 {[%clk 0:02:57]} 5. Nf3 {[%clk 0:02:49]}  O-O {[%clk 0:02:56]} 6. Nd5 {[%clk 0:02:49]}  Re8 {[%clk 0:02:51]} 7. a3 {[%clk 0:02:45]}  Bf8 {[%clk 0:02:50]} 8. Ng5 {[%clk 0:02:37]}  g6 {[%clk 0:02:45]} 9. Nxf6+ {[%clk 0:02:23]}  Qxf6 {[%clk 0:02:46]} 10. Ne4 {[%clk 0:02:24]}  Qd8 {[%clk 0:02:43]} 11. Be2 {[%clk 0:01:58]}  Bg7 {[%clk 0:02:43]} 12. O-O {[%clk 0:01:56]}  d5 {[%clk 0:02:18]} 13. cxd5 {[%clk 0:01:57]}  Qxd5 {[%clk 0:02:18]} 14. Bc4 {[%clk 0:01:47]}  Qd8 {[%clk 0:02:18]} 15. b4 {[%clk 0:01:44]}  Bf5 {[%clk 0:02:11]} 16. d3 {[%clk 0:01:40]}  a6 {[%clk 0:02:07]} 17. Bb2 {[%clk 0:01:34]}  Ne7 {[%clk 0:01:48]} 18. Nc5 {[%clk 0:01:25]}  b6 {[%clk 0:01:44]} 19. Nxa6 {[%clk 0:01:12]}  c6 {[%clk 0:01:41]} 20. b5 {[%clk 0:01:07]}  c5 {[%clk 0:01:41]} 21. Qb3 {[%clk 0:01:03]}  Rf8 {[%clk 0:01:38]} 22. a4 {[%clk 0:00:57]}  Nc8 {[%clk 0:01:37]} 23. Bd5 {[%clk 0:00:53]}  Ra7 {[%clk 0:01:35]} 24. Nb8 {[%clk 0:00:52]}  Ne7 {[%clk 0:01:29]} 25. Nc6 {[%clk 0:00:49]}  Nxc6 {[%clk 0:01:21]} 26. bxc6 {[%clk 0:00:50]}  Qc7 {[%clk 0:01:05]} 27. e4 {[%clk 0:00:47]}  Bc8 {[%clk 0:01:03]} 28. Bc3 {[%clk 0:00:40]}  Kh8 {[%clk 0:01:01]} 29. Rab1 {[%clk 0:00:39]}  Ba6 {[%clk 0:00:56]} 30. Rfd1 {[%clk 0:00:34]}  Rb8 {[%clk 0:00:53]} 31. Qb2 {[%clk 0:00:27]}  f5 {[%clk 0:00:50]} 32. f4 {[%clk 0:00:26]}  exf4 {[%clk 0:00:44]} 33. Bxg7+ {[%clk 0:00:25]}  Qxg7 {[%clk 0:00:45]} 34. Qxg7+ {[%clk 0:00:26]}  Kxg7 {[%clk 0:00:45]} 35. exf5 {[%clk 0:00:18]}  gxf5 {[%clk 0:00:46]} 36. Re1 {[%clk 0:00:19]}  Bxd3 {[%clk 0:00:43]} 37. Rbd1 {[%clk 0:00:15]}  c4 {[%clk 0:00:39]} 38. Re6 {[%clk 0:00:12]}  Rc8 {[%clk 0:00:31]} 39. Rd6 {[%clk 0:00:11]}  Rxa4 {[%clk 0:00:29]} 40. Rd7+ {[%clk 0:00:10]}  Kf6 {[%clk 0:00:28]} 41. Re1 {[%clk 0:00:08]}  Be4 {[%clk 0:00:27]} 42. Bxe4 {[%clk 0:00:04]}  fxe4 {[%clk 0:00:28]} 43. Rxe4 {[%clk 0:00:04]}  Rxc6 {[%clk 0:00:28]} 44. Rxf4+ {[%clk 0:00:03]}  Ke5 {[%clk 0:00:26]} 45. Rff7 {[%clk 0:00:03]}  c3 {[%clk 0:00:22]} 46. Rfe7+ {[%clk 0:00:03]}  Re6 {[%clk 0:00:22]} 47. Rxe6+ {[%clk 0:00:04]}  Kxe6 {[%clk 0:00:23]} 48. Rc7 {[%clk 0:00:04]}  Ra1+ {[%clk 0:00:17]} 49. Kf2 {[%clk 0:00:04]}  Ra2+ {[%clk 0:00:17]} 50. Ke3 {[%clk 0:00:05]}  c2 {[%clk 0:00:18]} 51. Kd2 {[%clk 0:00:03]}  Ke5 {[%clk 0:00:16]} 52. Rxc2 {[%clk 0:00:03]}  Rxc2+ {[%clk 0:00:15]} 53. Kxc2 {[%clk 0:00:04]}  Ke4 {[%clk 0:00:15]} 54. Kb3 {[%clk 0:00:04]}  Ke3 {[%clk 0:00:15]} 55. Kb4 {[%clk 0:00:05]}  Kf2 {[%clk 0:00:15]} 56. g4 {[%clk 0:00:03]}  Kf3 {[%clk 0:00:16]} 57. Kb5 {[%clk 0:00:02]}  Kxg4 {[%clk 0:00:16]} 58. Kxb6 {[%clk 0:00:03]}  Kh3 {[%clk 0:00:15]} 59. Kc5 {[%clk 0:00:04]}  Kxh2 {[%clk 0:00:16]} 60. Kd4 {[%clk 0:00:05]}  Kg2 {[%clk 0:00:15]} 61. Ke3 {[%clk 0:00:06]}  h5 {[%clk 0:00:15]} 62. Kf4 {[%clk 0:00:05]}  h4 {[%clk 0:00:16]} 0-1


[Site "https://www.chess.com"]

[Event "Titled Tuesday Blitz May 30 Early 2023"]
[White "Andreev, Konstantin"]
[Black "Csonka, Balazs"]
[WhiteFideId "24239305"]
[BlackFideId "742910"]
[WhiteElo "2106"]
[BlackElo "2404"]
[Result "0-1"]
[Round "03"]
[TimeControl "180+2"]
[Date "2023.05.30"]
[WhiteClock "0:00:23"]
[BlackClock "0:00:19"]

1. e4 {[%clk 0:03:00]}  c6 {[%clk 0:02:59]} 2. d4 {[%clk 0:03:00]}  d5 {[%clk 0:03:00]} 3. e5 {[%clk 0:03:01]}  c5 {[%clk 0:02:56]} 4. dxc5 {[%clk 0:03:02]}  e6 {[%clk 0:02:56]} 5. Nf3 {[%clk 0:03:02]}  Bxc5 {[%clk 0:02:55]} 6. Bd3 {[%clk 0:03:02]}  Ne7 {[%clk 0:02:53]} 7. a3 {[%clk 0:03:03]}  Ng6 {[%clk 0:02:45]} 8. O-O {[%clk 0:03:04]}  O-O {[%clk 0:02:43]} 9. b4 {[%clk 0:03:04]}  Be7 {[%clk 0:02:38]} 10. Re1 {[%clk 0:03:04]}  a5 {[%clk 0:02:35]} 11. b5 {[%clk 0:03:03]}  Nd7 {[%clk 0:02:36]} 12. Bb2 {[%clk 0:03:01]}  Nc5 {[%clk 0:02:31]} 13. Nbd2 {[%clk 0:03:00]}  b6 {[%clk 0:02:24]} 14. Bf1 {[%clk 0:02:57]}  Bb7 {[%clk 0:02:20]} 15. g3 {[%clk 0:02:48]}  Qc7 {[%clk 0:01:57]} 16. Qe2 {[%clk 0:02:44]}  Rfd8 {[%clk 0:01:52]} 17. Bd4 {[%clk 0:02:37]}  Ne4 {[%clk 0:01:33]} 18. h4 {[%clk 0:02:12]}  Bc5 {[%clk 0:01:19]} 19. c3 {[%clk 0:02:09]}  Ne7 {[%clk 0:01:05]} 20. a4 {[%clk 0:02:08]}  Rac8 {[%clk 0:00:59]} 21. Bh3 {[%clk 0:02:00]}  h6 {[%clk 0:00:52]} 22. Rec1 {[%clk 0:01:46]}  Bxd4 {[%clk 0:00:48]} 23. Nxd4 {[%clk 0:01:44]}  Nxc3 {[%clk 0:00:37]} 24. Qe3 {[%clk 0:01:34]}  Qc5 {[%clk 0:00:37]} 25. Nb1 {[%clk 0:01:16]}  Qxd4 {[%clk 0:00:30]} 26. Rxc3 {[%clk 0:00:49]}  Qd1+ {[%clk 0:00:27]} 27. Bf1 {[%clk 0:00:45]}  d4 {[%clk 0:00:25]} 28. Qd2 {[%clk 0:00:23]}  dxc3 {[%clk 0:00:19]} 0-1


[Site "https://www.chess.com"]

[Event "Titled Tuesday Blitz May 30 Early 2023"]
[White "Matinian, Nikita"]
[Black "Gurevich, Dmitry"]
[WhiteFideId "24129100"]
[BlackFideId "2000407"]
[WhiteElo "2422"]
[BlackElo "2506"]
[Result "1-0"]
[Round "03"]
[TimeControl "180+2"]
[Date "2023.05.30"]
[WhiteClock "0:01:14"]
[BlackClock "0:00:13"]

1. e4 {[%clk 0:02:58]}  c5 {[%clk 0:02:59]} 2. Nf3 {[%clk 0:02:55]}  d6 {[%clk 0:02:58]} 3. d4 {[%clk 0:02:55]}  cxd4 {[%clk 0:02:58]} 4. Nxd4 {[%clk 0:02:56]}  Nf6 {[%clk 0:02:58]} 5. Nc3 {[%clk 0:02:56]}  Nc6 {[%clk 0:02:58]} 6. Bg5 {[%clk 0:02:56]}  g6 {[%clk 0:02:57]} 7. Bxf6 {[%clk 0:02:54]}  exf6 {[%clk 0:02:58]} 8. Bb5 {[%clk 0:02:54]}  Bd7 {[%clk 0:02:57]} 9. Qd2 {[%clk 0:02:49]}  Bg7 {[%clk 0:02:45]} 10. O-O-O {[%clk 0:02:48]}  O-O {[%clk 0:02:45]} 11. Nb3 {[%clk 0:02:49]}  a6 {[%clk 0:02:35]} 12. Be2 {[%clk 0:02:39]}  Be6 {[%clk 0:02:31]} 13. Qxd6 {[%clk 0:02:38]}  Qxd6 {[%clk 0:02:30]} 14. Rxd6 {[%clk 0:02:38]}  f5 {[%clk 0:02:29]} 15. Nc5 {[%clk 0:02:30]}  Bc8 {[%clk 0:02:26]} 16. exf5 {[%clk 0:02:24]}  Be5 {[%clk 0:02:15]} 17. Rdd1 {[%clk 0:02:12]}  Bxf5 {[%clk 0:02:07]} 18. Nxb7 {[%clk 0:02:12]}  Nd4 {[%clk 0:02:00]} 19. Bd3 {[%clk 0:02:06]}  Rab8 {[%clk 0:01:51]} 20. Nc5 {[%clk 0:02:05]}  Rfc8 {[%clk 0:01:45]} 21. Nb3 {[%clk 0:02:05]}  Nxb3+ {[%clk 0:01:37]} 22. axb3 {[%clk 0:02:05]}  Be6 {[%clk 0:01:28]} 23. Rhe1 {[%clk 0:01:47]}  Bxc3 {[%clk 0:01:24]} 24. bxc3 {[%clk 0:01:47]}  Rxc3 {[%clk 0:01:22]} 25. Kb2 {[%clk 0:01:46]}  Rc6 {[%clk 0:01:21]} 26. Ra1 {[%clk 0:01:41]}  Rbb6 {[%clk 0:01:20]} 27. Re5 {[%clk 0:01:39]}  Kg7 {[%clk 0:01:18]} 28. Rea5 {[%clk 0:01:38]}  Bc8 {[%clk 0:01:18]} 29. g4 {[%clk 0:01:37]}  h6 {[%clk 0:01:11]} 30. f3 {[%clk 0:01:32]}  Rf6 {[%clk 0:01:05]} 31. Be4 {[%clk 0:01:31]}  Rbd6 {[%clk 0:01:02]} 32. Rc5 {[%clk 0:01:27]}  Be6 {[%clk 0:00:54]} 33. h4 {[%clk 0:01:26]}  Bd7 {[%clk 0:00:50]} 34. g5 {[%clk 0:01:26]}  hxg5 {[%clk 0:00:49]} 35. hxg5 {[%clk 0:01:27]}  Rfe6 {[%clk 0:00:48]} 36. Raa5 {[%clk 0:01:20]}  Rd2 {[%clk 0:00:45]} 37. Rd5 {[%clk 0:01:18]}  Rxd5 {[%clk 0:00:40]} 38. Rxd5 {[%clk 0:01:19]}  Bc6 {[%clk 0:00:37]} 39. Rd4 {[%clk 0:01:19]}  Bxe4 {[%clk 0:00:37]} 40. Rxe4 {[%clk 0:01:20]}  Rc6 {[%clk 0:00:33]} 41. c4 {[%clk 0:01:18]}  Rc5 {[%clk 0:00:33]} 42. f4 {[%clk 0:01:18]}  Rc7 {[%clk 0:00:29]} 43. Kc3 {[%clk 0:01:18]}  f6 {[%clk 0:00:28]} 44. b4 {[%clk 0:01:18]}  fxg5 {[%clk 0:00:26]} 45. fxg5 {[%clk 0:01:18]}  Rf7 {[%clk 0:00:24]} 46. c5 {[%clk 0:01:18]}  Kf8 {[%clk 0:00:19]} 47. Kc4 {[%clk 0:01:15]}  Rf5 {[%clk 0:00:13]} 48. c6 {[%clk 0:01:14]} 1-0


[Site "https://www.chess.com"]

[Event "Titled Tuesday Blitz May 30 Early 2023"]
[White "Novikov, Evgenij"]
[Black "Wagner, Dennis"]
[WhiteFideId "4125380"]
[BlackFideId "24650684"]
[WhiteElo "2242"]
[BlackElo "2478"]
[Result "1-0"]
[Round "03"]
[TimeControl "180+2"]
[Date "2023.05.30"]
[WhiteClock "0:01:23"]
[BlackClock "0:00:04"]

1. d4 {[%clk 0:02:58]}  d5 {[%clk 0:02:58]} 2. c4 {[%clk 0:02:57]}  e6 {[%clk 0:02:58]} 3. Nc3 {[%clk 0:02:57]}  Be7 {[%clk 0:02:56]} 4. Nf3 {[%clk 0:02:55]}  Nf6 {[%clk 0:02:55]} 5. cxd5 {[%clk 0:02:54]}  exd5 {[%clk 0:02:54]} 6. Bg5 {[%clk 0:02:55]}  c6 {[%clk 0:02:53]} 7. e3 {[%clk 0:02:52]}  Bf5 {[%clk 0:02:48]} 8. Bd3 {[%clk 0:02:51]}  Bxd3 {[%clk 0:02:48]} 9. Qxd3 {[%clk 0:02:52]}  O-O {[%clk 0:02:47]} 10. O-O {[%clk 0:02:52]}  Nbd7 {[%clk 0:02:44]} 11. Rab1 {[%clk 0:02:45]}  a5 {[%clk 0:02:36]} 12. Qc2 {[%clk 0:02:43]}  h6 {[%clk 0:02:35]} 13. Bh4 {[%clk 0:02:40]}  Re8 {[%clk 0:02:34]} 14. Bg3 {[%clk 0:02:26]}  Nh5 {[%clk 0:02:02]} 15. Rfe1 {[%clk 0:02:19]}  Nxg3 {[%clk 0:02:02]} 16. hxg3 {[%clk 0:02:20]}  Nf6 {[%clk 0:01:55]} 17. a3 {[%clk 0:02:18]}  Bd6 {[%clk 0:01:54]} 18. b4 {[%clk 0:02:13]}  axb4 {[%clk 0:01:05]} 19. axb4 {[%clk 0:02:14]}  Qe7 {[%clk 0:00:59]} 20. b5 {[%clk 0:02:10]}  c5 {[%clk 0:00:56]} 21. dxc5 {[%clk 0:02:09]}  Bxc5 {[%clk 0:00:57]} 22. Rbd1 {[%clk 0:01:41]}  Red8 {[%clk 0:00:37]} 23. Nd4 {[%clk 0:01:39]}  Rac8 {[%clk 0:00:32]} 24. Qd3 {[%clk 0:01:36]}  g6 {[%clk 0:00:30]} 25. Re2 {[%clk 0:01:35]}  Qe5 {[%clk 0:00:28]} 26. Rc2 {[%clk 0:01:31]}  Qh5 {[%clk 0:00:22]} 27. Nf3 {[%clk 0:01:29]}  Be7 {[%clk 0:00:15]} 28. Ne2 {[%clk 0:01:29]}  Qg4 {[%clk 0:00:09]} 29. Nf4 {[%clk 0:01:27]}  Rxc2 {[%clk 0:00:08]} 30. Qxc2 {[%clk 0:01:28]}  Qd7 {[%clk 0:00:07]} 31. Nxg6 {[%clk 0:01:22]}  Rc8 {[%clk 0:00:05]} 32. Qxc8+ {[%clk 0:01:22]}  Qxc8 {[%clk 0:00:05]} 33. Nxe7+ {[%clk 0:01:22]}  Kg7 {[%clk 0:00:04]} 34. Nxc8 {[%clk 0:01:23]} 1-0


[Site "https://www.chess.com"]

[Event "Titled Tuesday Blitz May 30 Early 2023"]
[White "egorchess95"]
[Black "Barbot, Pierre"]
[BlackFideId "663727"]
[WhiteElo "2699"]
[BlackElo "2431"]
[Result "1-0"]
[Round "03"]
[TimeControl "180+2"]
[Date "2023.05.30"]
[WhiteClock "0:01:58"]
[BlackClock "0:00:00"]

1. e4 {[%clk 0:03:00]}  c6 {[%clk 0:02:59]} 2. d4 {[%clk 0:03:00]}  d5 {[%clk 0:02:59]} 3. e5 {[%clk 0:03:00]}  c5 {[%clk 0:03:00]} 4. dxc5 {[%clk 0:03:00]}  e6 {[%clk 0:02:59]} 5. Qg4 {[%clk 0:03:00]}  h5 {[%clk 0:02:30]} 6. Qg3 {[%clk 0:03:00]}  Nh6 {[%clk 0:02:18]} 7. Bg5 {[%clk 0:02:45]}  Qa5+ {[%clk 0:02:02]} 8. Nd2 {[%clk 0:02:45]}  Nf5 {[%clk 0:01:58]} 9. Qf4 {[%clk 0:02:43]}  Bxc5 {[%clk 0:01:48]} 10. c3 {[%clk 0:02:41]}  Qb6 {[%clk 0:01:34]} 11. Nb3 {[%clk 0:02:40]}  Nc6 {[%clk 0:01:11]} 12. Bd3 {[%clk 0:02:39]}  Be7 {[%clk 0:00:45]} 13. Bxe7 {[%clk 0:02:31]}  Ncxe7 {[%clk 0:00:41]} 14. Nf3 {[%clk 0:02:31]}  Ng6 {[%clk 0:00:23]} 15. Qg5 {[%clk 0:02:30]}  Qd8 {[%clk 0:00:23]} 16. Qd2 {[%clk 0:02:19]}  h4 {[%clk 0:00:23]} 17. h3 {[%clk 0:02:18]}  Kf8 {[%clk 0:00:17]} 18. O-O {[%clk 0:02:18]}  Kg8 {[%clk 0:00:16]} 19. Rae1 {[%clk 0:02:18]}  Bd7 {[%clk 0:00:15]} 20. Nfd4 {[%clk 0:02:17]}  Rh5 {[%clk 0:00:09]} 21. Nxf5 {[%clk 0:01:59]}  exf5 {[%clk 0:00:10]} 22. f4 {[%clk 0:02:00]}  Be6 {[%clk 0:00:06]} 23. Nd4 {[%clk 0:02:00]}  a6 {[%clk 0:00:06]} 24. Qe2 {[%clk 0:01:59]}  Rh6 {[%clk 0:00:05]} 25. Nxf5 {[%clk 0:02:00]}  Rh7 {[%clk 0:00:04]} 26. Nd4 {[%clk 0:01:59]}  Rh6 {[%clk 0:00:02]} 27. f5 {[%clk 0:01:59]}  Bd7 {[%clk 0:00:01]} 28. fxg6 {[%clk 0:01:59]}  Qg5 {[%clk 0:00:01]} 29. gxf7+ {[%clk 0:01:58]}  Kf8 {[%clk 0:00:00]} 30. e6 {[%clk 0:01:58]} 1-0


[Site "https://www.chess.com"]

[Event "Titled Tuesday Blitz May 30 Early 2023"]
[White "Camilla_Lee"]
[Black "Fishchuk, Vladyslav"]
[BlackFideId "34122117"]
[WhiteElo "2690"]
[BlackElo "2082"]
[Result "1-0"]
[Round "03"]
[TimeControl "180+2"]
[Date "2023.05.30"]
[WhiteClock "0:00:16"]
[BlackClock "0:00:13"]

1. e4 {[%clk 0:03:00]}  c5 {[%clk 0:02:59]} 2. Nf3 {[%clk 0:03:00]}  Nf6 {[%clk 0:02:59]} 3. Nc3 {[%clk 0:03:00]}  d5 {[%clk 0:02:59]} 4. exd5 {[%clk 0:02:41]}  Nxd5 {[%clk 0:03:00]} 5. Bb5+ {[%clk 0:02:33]}  Bd7 {[%clk 0:02:59]} 6. Bc4 {[%clk 0:02:28]}  Nxc3 {[%clk 0:02:52]} 7. dxc3 {[%clk 0:02:15]}  e6 {[%clk 0:02:46]} 8. Bf4 {[%clk 0:02:06]}  Nc6 {[%clk 0:02:41]} 9. Qe2 {[%clk 0:01:54]}  Qf6 {[%clk 0:02:36]} 10. Bg5 {[%clk 0:01:46]}  Qg6 {[%clk 0:02:29]} 11. h4 {[%clk 0:01:45]}  Qh5 {[%clk 0:01:56]} 12. O-O-O {[%clk 0:01:35]}  h6 {[%clk 0:01:54]} 13. Rxd7 {[%clk 0:01:26]}  hxg5 {[%clk 0:01:48]} 14. Rxb7 {[%clk 0:01:22]}  Be7 {[%clk 0:01:22]} 15. Bxe6 {[%clk 0:00:54]}  fxe6 {[%clk 0:01:08]} 16. Qxe6 {[%clk 0:00:55]}  Qh6 {[%clk 0:01:04]} 17. Qd7+ {[%clk 0:00:36]}  Kf8 {[%clk 0:01:02]} 18. Re1 {[%clk 0:00:30]}  Re8 {[%clk 0:01:01]} 19. Kb1 {[%clk 0:00:22]}  gxh4 {[%clk 0:00:56]} 20. Re6 {[%clk 0:00:17]}  Rd8 {[%clk 0:00:25]} 21. Rxh6 {[%clk 0:00:17]}  Rxd7 {[%clk 0:00:21]} 22. Rxh8+ {[%clk 0:00:16]}  Kf7 {[%clk 0:00:13]} 23. Rxd7 {[%clk 0:00:16]} 1-0


[Site "https://www.chess.com"]

[Event "Titled Tuesday Blitz May 30 Early 2023"]
[White "Ryan, Joseph"]
[Black "Domingo Nunez, Ruben"]
[WhiteFideId "2500426"]
[BlackFideId "22245570"]
[WhiteElo "2457"]
[BlackElo "2404"]
[Result "0-1"]
[Round "03"]
[TimeControl "180+2"]
[Date "2023.05.30"]
[WhiteClock "0:00:12"]
[BlackClock "0:01:35"]

1. e4 {[%clk 0:03:00]}  g6 {[%clk 0:02:59]} 2. d4 {[%clk 0:02:57]}  Bg7 {[%clk 0:02:57]} 3. Nf3 {[%clk 0:02:48]}  c6 {[%clk 0:02:56]} 4. Nc3 {[%clk 0:02:45]}  d5 {[%clk 0:02:57]} 5. h3 {[%clk 0:02:44]}  dxe4 {[%clk 0:02:57]} 6. Nxe4 {[%clk 0:02:44]}  Nf6 {[%clk 0:02:58]} 7. Nxf6+ {[%clk 0:02:44]}  exf6 {[%clk 0:02:59]} 8. Bc4 {[%clk 0:02:42]}  O-O {[%clk 0:03:00]} 9. O-O {[%clk 0:02:42]}  a5 {[%clk 0:03:00]} 10. a4 {[%clk 0:02:41]}  Na6 {[%clk 0:03:01]} 11. Re1 {[%clk 0:02:41]}  Nb4 {[%clk 0:03:01]} 12. c3 {[%clk 0:02:41]}  Nd5 {[%clk 0:03:02]} 13. Qb3 {[%clk 0:02:35]}  Nc7 {[%clk 0:03:00]} 14. Bd2 {[%clk 0:02:34]}  Rb8 {[%clk 0:03:00]} 15. Qc2 {[%clk 0:02:32]}  Qd6 {[%clk 0:02:57]} 16. Rad1 {[%clk 0:02:29]}  Be6 {[%clk 0:02:57]} 17. Bxe6 {[%clk 0:02:26]}  Nxe6 {[%clk 0:02:58]} 18. b3 {[%clk 0:02:19]}  Rfe8 {[%clk 0:02:57]} 19. Re2 {[%clk 0:02:17]}  Nf4 {[%clk 0:02:52]} 20. Bxf4 {[%clk 0:02:16]}  Qxf4 {[%clk 0:02:53]} 21. Rde1 {[%clk 0:02:12]}  Rxe2 {[%clk 0:02:53]} 22. Qxe2 {[%clk 0:02:11]}  Bf8 {[%clk 0:02:53]} 23. Qe4 {[%clk 0:02:07]}  Qd6 {[%clk 0:02:53]} 24. g3 {[%clk 0:02:05]}  b5 {[%clk 0:02:52]} 25. Kg2 {[%clk 0:02:01]}  bxa4 {[%clk 0:02:47]} 26. bxa4 {[%clk 0:02:02]}  Rb3 {[%clk 0:02:47]} 27. c4 {[%clk 0:01:58]}  Kg7 {[%clk 0:02:41]} 28. c5 {[%clk 0:01:57]}  Qd7 {[%clk 0:02:40]} 29. Rb1 {[%clk 0:01:53]}  Ra3 {[%clk 0:02:36]} 30. Rb6 {[%clk 0:01:47]}  Rxa4 {[%clk 0:02:30]} 31. Qxc6 {[%clk 0:01:38]}  Qxc6 {[%clk 0:02:27]} 32. Rxc6 {[%clk 0:01:39]}  Rc4 {[%clk 0:02:27]} 33. Ra6 {[%clk 0:01:31]}  a4 {[%clk 0:02:27]} 34. c6 {[%clk 0:01:26]}  Bd6 {[%clk 0:02:27]} 35. d5 {[%clk 0:01:24]}  f5 {[%clk 0:02:01]} 36. Ra7 {[%clk 0:01:11]}  Kf6 {[%clk 0:01:57]} 37. h4 {[%clk 0:01:10]}  h6 {[%clk 0:01:58]} 38. Rd7 {[%clk 0:01:05]}  Bb8 {[%clk 0:01:44]} 39. d6 {[%clk 0:01:04]}  Rxc6 {[%clk 0:01:42]} 40. Rd8 {[%clk 0:00:45]}  Bxd6 {[%clk 0:01:40]} 41. Nd4 {[%clk 0:00:43]}  Ra6 {[%clk 0:01:38]} 42. Nb5 {[%clk 0:00:40]}  a3 {[%clk 0:01:36]} 43. Nc3 {[%clk 0:00:21]}  Ke7 {[%clk 0:01:35]} 44. Ra8 {[%clk 0:00:12]}  Rxa8 {[%clk 0:01:35]} 0-1


[Site "https://www.chess.com"]

[Event "Titled Tuesday Blitz May 30 Early 2023"]
[White "Shuvalova, Polina"]
[Black "Yeritsyan, Hayk"]
[WhiteFideId "24171760"]
[BlackFideId "13307320"]
[WhiteElo "2281"]
[BlackElo "2447"]
[Result "1-0"]
[Round "03"]
[TimeControl "180+2"]
[Date "2023.05.30"]
[WhiteClock "0:00:33"]
[BlackClock "0:00:07"]

1. e4 {[%clk 0:03:00]}  c6 {[%clk 0:02:59]} 2. d4 {[%clk 0:02:55]}  d5 {[%clk 0:03:00]} 3. Nc3 {[%clk 0:02:55]}  dxe4 {[%clk 0:03:00]} 4. Nxe4 {[%clk 0:02:56]}  Nd7 {[%clk 0:03:01]} 5. Bc4 {[%clk 0:02:54]}  Ngf6 {[%clk 0:02:59]} 6. Ng5 {[%clk 0:02:54]}  e6 {[%clk 0:02:59]} 7. N1f3 {[%clk 0:02:51]}  h6 {[%clk 0:02:55]} 8. Nh3 {[%clk 0:02:50]}  g5 {[%clk 0:02:51]} 9. Nhg1 {[%clk 0:02:46]}  Bg7 {[%clk 0:02:49]} 10. Ne2 {[%clk 0:02:46]}  Nb6 {[%clk 0:02:47]} 11. Bd3 {[%clk 0:02:43]}  Qc7 {[%clk 0:02:33]} 12. h4 {[%clk 0:02:41]}  g4 {[%clk 0:02:33]} 13. Bf4 {[%clk 0:02:41]}  Qe7 {[%clk 0:02:27]} 14. Ne5 {[%clk 0:02:40]}  c5 {[%clk 0:02:21]} 15. c4 {[%clk 0:02:33]}  cxd4 {[%clk 0:02:13]} 16. Nxd4 {[%clk 0:02:32]}  Nfd7 {[%clk 0:02:11]} 17. Nxd7 {[%clk 0:02:18]}  Bxd4 {[%clk 0:01:52]} 18. Nxb6 {[%clk 0:02:17]}  Qb4+ {[%clk 0:01:51]} 19. Qd2 {[%clk 0:02:13]}  Qxb6 {[%clk 0:01:47]} 20. O-O-O {[%clk 0:02:01]}  Bd7 {[%clk 0:01:28]} 21. Be4 {[%clk 0:01:21]}  f5 {[%clk 0:00:26]} 22. Qxd4 {[%clk 0:01:15]}  Qxd4 {[%clk 0:00:26]} 23. Rxd4 {[%clk 0:01:16]}  fxe4 {[%clk 0:00:27]} 24. Rxe4 {[%clk 0:01:10]}  Kf7 {[%clk 0:00:27]} 25. Re3 {[%clk 0:01:01]}  h5 {[%clk 0:00:25]} 26. Rhe1 {[%clk 0:01:00]}  Rhe8 {[%clk 0:00:23]} 27. b3 {[%clk 0:00:58]}  Bc6 {[%clk 0:00:23]} 28. g3 {[%clk 0:00:58]}  a6 {[%clk 0:00:20]} 29. Re5 {[%clk 0:00:59]}  Kg6 {[%clk 0:00:14]} 30. Rg5+ {[%clk 0:00:59]}  Kf6 {[%clk 0:00:13]} 31. Rxh5 {[%clk 0:00:59]}  Ke7 {[%clk 0:00:12]} 32. Rg5 {[%clk 0:00:57]}  Rg8 {[%clk 0:00:11]} 33. Rge5 {[%clk 0:00:55]}  Kf7 {[%clk 0:00:11]} 34. Rxe6 {[%clk 0:00:51]}  Rae8 {[%clk 0:00:09]} 35. Rxe8 {[%clk 0:00:51]}  Bxe8 {[%clk 0:00:09]} 36. Re5 {[%clk 0:00:51]}  Bc6 {[%clk 0:00:08]} 37. h5 {[%clk 0:00:42]}  Re8 {[%clk 0:00:07]} 38. Rxe8 {[%clk 0:00:42]}  Bxe8 {[%clk 0:00:07]} 39. h6 {[%clk 0:00:41]}  Kg8 {[%clk 0:00:05]} 40. Kd2 {[%clk 0:00:42]}  Bg6 {[%clk 0:00:06]} 41. Kc3 {[%clk 0:00:42]}  Kf7 {[%clk 0:00:06]} 42. c5 {[%clk 0:00:36]}  Ke6 {[%clk 0:00:06]} 43. Kd4 {[%clk 0:00:36]}  Bh7 {[%clk 0:00:07]} 44. b4 {[%clk 0:00:30]}  Bg6 {[%clk 0:00:06]} 45. a4 {[%clk 0:00:30]}  Bh7 {[%clk 0:00:07]} 46. b5 {[%clk 0:00:31]}  axb5 {[%clk 0:00:07]} 47. axb5 {[%clk 0:00:32]}  Bg6 {[%clk 0:00:08]} 48. c6 {[%clk 0:00:32]}  bxc6 {[%clk 0:00:09]} 49. bxc6 {[%clk 0:00:32]}  Bh7 {[%clk 0:00:08]} 50. c7 {[%clk 0:00:33]}  Kd7 {[%clk 0:00:08]} 51. Be5 {[%clk 0:00:31]}  Kc8 {[%clk 0:00:08]} 52. Ke3 {[%clk 0:00:31]}  Bf5 {[%clk 0:00:08]} 53. Kf4 {[%clk 0:00:32]}  Bh7 {[%clk 0:00:09]} 54. Kxg4 {[%clk 0:00:32]}  Kd7 {[%clk 0:00:07]} 55. Kg5 {[%clk 0:00:33]} 1-0


[Site "https://www.chess.com"]

[Event "Titled Tuesday Blitz May 30 Early 2023"]
[White "Goryachkina, Aleksandra"]
[Black "Zaitsev, Alexander"]
[WhiteFideId "4147103"]
[BlackFideId "4164490"]
[WhiteElo "2471"]
[BlackElo "2373"]
[Result "1-0"]
[Round "03"]
[TimeControl "180+2"]
[Date "2023.05.30"]
[WhiteClock "0:00:57"]
[BlackClock "0:00:11"]

1. e4 {[%clk 0:02:59]}  c5 {[%clk 0:02:59]} 2. Nf3 {[%clk 0:02:59]}  g6 {[%clk 0:03:00]} 3. g3 {[%clk 0:02:44]}  Nc6 {[%clk 0:02:56]} 4. Bg2 {[%clk 0:02:45]}  Bg7 {[%clk 0:02:57]} 5. O-O {[%clk 0:02:45]}  e5 {[%clk 0:02:57]} 6. Na3 {[%clk 0:02:27]}  Nge7 {[%clk 0:02:55]} 7. c3 {[%clk 0:02:25]}  O-O {[%clk 0:02:48]} 8. Re1 {[%clk 0:02:17]}  d5 {[%clk 0:02:37]} 9. exd5 {[%clk 0:02:16]}  Nxd5 {[%clk 0:02:38]} 10. Nc4 {[%clk 0:02:16]}  Re8 {[%clk 0:02:37]} 11. d3 {[%clk 0:02:15]}  Bf5 {[%clk 0:02:28]} 12. Nh4 {[%clk 0:02:02]}  Be6 {[%clk 0:02:26]} 13. a4 {[%clk 0:02:01]}  Qd7 {[%clk 0:02:19]} 14. Qc2 {[%clk 0:01:56]}  Rad8 {[%clk 0:02:10]} 15. Bg5 {[%clk 0:01:53]}  f6 {[%clk 0:02:09]} 16. Bc1 {[%clk 0:01:43]}  g5 {[%clk 0:02:08]} 17. Nf3 {[%clk 0:01:43]}  Bf5 {[%clk 0:02:08]} 18. Nfd2 {[%clk 0:01:22]}  Nde7 {[%clk 0:01:47]} 19. Ne4 {[%clk 0:01:19]}  b6 {[%clk 0:01:13]} 20. Ned6 {[%clk 0:01:16]}  Rf8 {[%clk 0:01:13]} 21. Nxf5 {[%clk 0:01:14]}  Nxf5 {[%clk 0:01:13]} 22. a5 {[%clk 0:01:08]}  b5 {[%clk 0:01:00]} 23. Ne3 {[%clk 0:01:08]}  Nfe7 {[%clk 0:00:57]} 24. Qb3+ {[%clk 0:01:03]}  Kh8 {[%clk 0:00:49]} 25. Qxb5 {[%clk 0:01:03]}  f5 {[%clk 0:00:45]} 26. Qxc5 {[%clk 0:00:59]}  f4 {[%clk 0:00:46]} 27. Nc4 {[%clk 0:00:59]}  f3 {[%clk 0:00:45]} 28. Bf1 {[%clk 0:01:00]}  Rf6 {[%clk 0:00:34]} 29. Bxg5 {[%clk 0:00:58]}  Rg6 {[%clk 0:00:25]} 30. Bxe7 {[%clk 0:00:58]}  Nxe7 {[%clk 0:00:26]} 31. Nxe5 {[%clk 0:00:58]}  Bxe5 {[%clk 0:00:25]} 32. Qxe5+ {[%clk 0:00:58]}  Kg8 {[%clk 0:00:11]} 33. Qxe7 {[%clk 0:00:57]} 1-0


[Site "https://www.chess.com"]